bitfinex/quotes_SOLUSD_20260224
["timestamp","ask_amount","ask_price","bid_price","bid_amount"]
[1771891578823,0.47113037,78.109,78.086,0.47826415]
[1771891579025,13.28638106,78.117,78.091,0.47826415]
[1771891580829,0.49643437,78.116,78.091,0.47826415]
[1771891581718,0.49643437,78.116,78.093,0.47826549]
[1771891584516,0.49643437,78.109,78.081,5.36086188]
[1771891584817,0.49643437,78.109,78.083,0.47826549]
[1771891588032,0.49643437,78.109,78.08,5.54960124]
[1771891588033,0.49643437,78.109,78.085,0.47826549]
[1771891591218,0.49643437,78.107,78.087,0.47826549]
[1771891596743,0.49643437,78.105,78.087,0.47826549]
[1771891598437,0.49643437,78.105,78.088,0.47826549]
[1771891601241,5.54960124,78.13,78.091,0.47826549]
[1771891601439,6.69258961,78.132,78.101,0.47826549]
[1771891601641,6.69258961,78.132,78.092,5.64518502]
[1771891601642,12.79847881,78.135,78.111,0.47826549]
[1771891603926,13.29491318,78.135,78.111,0.47826549]
[1771891605245,0.49643437,78.148,78.121,0.47826549]
[1771891605446,0.49643437,78.146,78.121,0.47826549]
[1771891605745,0.49643437,78.165,78.132,0.47826549]
[1771891605952,0.49643437,78.159,78.132,0.47826549]
[1771891606731,0.49643437,78.159,78.133,13.2769549]
[1771891606949,0.49643437,78.149,78.113,0.28432314]
[1771891607126,12.79459556,78.158,78.111,0.47826549]
[1771891607127,0.49643437,78.139,78.111,0.47826549]
[1771891607443,0.49643437,78.139,78.107,0.47826549]
[1771891607821,0.49643437,78.139,78.111,0.48787814]
[1771891608639,0.48570024,78.137,78.112,12.80213027]
[1771891609033,0.48570024,78.137,78.113,0.48787814]
[1771891610744,0.48570024,78.137,78.114,12.80180249]
[1771891611241,0.48570024,78.137,78.114,13.28968063]
[1771891612334,0.48570024,78.137,78.114,12.80180249]
[1771891612539,0.48570024,78.137,78.116,12.80147472]
[1771891612738,0.48570024,78.137,78.116,13.28935286]
[1771891614242,0.48570024,78.137,78.117,0.48787814]
[1771891614845,0.48570024,78.144,78.117,0.48787814]
[1771891616537,0.48570024,78.142,78.117,0.48787814]
[1771891617943,5.54960124,78.13,78.101,0.48787814]
[1771891618245,0.48570024,78.129,78.101,0.48787814]
[1771891618746,0.48570024,78.129,78.103,0.48787814]
[1771891620053,12.79843358,78.135,78.111,0.48787814]
[1771891620734,0.48570024,78.141,78.113,0.48787814]
[1771891620933,0.48570024,78.159,78.121,0.48787814]
[1771891622732,44.77650128,78.166,78.121,0.48787814]
[1771891622733,0.48570024,78.149,78.121,0.48787814]
[1771891623452,0.48570024,78.147,78.123,0.48787814]
[1771891625463,12.79656028,78.146,78.123,0.48787814]
[1771891625669,0.48570024,78.145,78.123,0.48787814]
[1771891627176,0.48570024,78.143,78.118,0.48787814]
[1771891628270,12.79688779,78.144,78.121,0.48787814]
[1771891629771,13.28102436,78.154,78.131,0.48787814]
[1771891629980,0.48570024,78.153,78.131,0.48787814]
[1771891636083,0.48570024,78.151,78.131,0.48787814]
[1771891636885,0.48570024,78.151,78.125,0.48787814]
[1771891637069,12.79557784,78.152,78.12,0.48787814]
[1771891637070,0.48570024,78.149,78.12,0.48787814]
[1771891638389,0.45954857,78.147,78.114,0.5015958]
[1771891639288,0.45954857,78.139,78.109,0.5015958]
[1771891640978,0.4775757,78.137,78.111,0.48031399]
[1771891643406,12.79819801,78.136,78.111,0.48031399]
[1771891643592,31.99058197,78.148,78.113,0.48031399]
[1771891643593,0.4775757,78.135,78.113,0.48031399]
[1771891648596,12.7985256,78.134,78.113,0.48031399]
[1771891648897,0.4775757,78.133,78.113,0.48031399]
[1771891657009,0.4775757,78.131,78.113,0.48031399]
[1771891659807,0.4775757,78.129,78.109,0.48031399]
[1771891660106,0.4775757,78.129,78.104,0.48031399]
[1771891663297,0.4775757,78.129,78.106,0.48031399]
[1771891664307,12.79843439,78.135,78.111,0.48031399]
[1771891664608,13.27601009,78.135,78.111,0.48031399]
[1771891664812,12.79843439,78.135,78.111,0.48031399]
[1771891665105,0.4775757,78.134,78.111,0.48031399]
[1771891666914,0.4775757,78.159,78.121,0.48031399]
[1771891667103,0.4775757,78.159,78.131,0.48031399]
[1771891670115,0.45886749,78.157,78.131,0.48031399]
[1771891672016,12.79492297,78.156,78.131,0.48031399]
[1771891672221,0.45886749,78.155,78.131,0.48031399]
[1771891673821,12.79332666,78.166,78.141,0.4732556]
[1771891674015,12.79332666,78.166,78.141,12.79737796]
[1771891674214,12.79332666,78.166,78.142,0.4732556]
[1771891674513,0.45886749,78.165,78.142,0.4732556]
[1771891675424,0.45886749,78.159,78.132,0.4732556]
[1771891675614,0.45886749,78.159,78.134,0.4732556]
[1771891678024,0.45886749,78.159,78.136,0.4732556]
[1771891679926,0.45886749,78.159,78.137,12.79803422]
[1771891680226,0.45886749,78.159,78.138,0.4732556]
[1771891680608,0.45886749,78.164,78.141,0.4732556]
[1771891681424,0.45886749,78.164,78.15,5.54408689]
[1771891682025,12.7932566,78.167,78.151,0.4732556]
[1771891682218,13.25212409,78.167,78.151,0.4732556]
[1771891682924,0.45886749,78.166,78.151,0.4732556]
[1771891683126,12.79344975,78.165,78.151,0.4732556]
[1771891683313,0.45886749,78.164,78.147,0.4732556]
[1771891686634,12.7937771,78.163,78.147,0.4732556]
[1771891686934,0.45886749,78.162,78.147,0.4732556]
[1771891691634,0.45886749,78.159,78.124,5.36086188]
[1771891691832,12.79279509,78.169,78.124,5.36086188]
[1771891691833,0.45886749,78.149,78.124,0.4732556]
[1771891692435,0.45886749,78.149,78.131,0.4732556]
[1771891695636,0.45886749,78.153,78.131,0.4732556]
[1771891696533,0.45886749,78.151,78.131,0.4732556]
[1771891696738,0.45886749,78.151,78.125,12.7999038]
[1771891696739,0.45886749,78.151,78.126,0.4732556]
[1771891699245,0.45886749,78.151,78.127,12.79967232]
[1771891699431,12.79279509,78.169,78.141,0.48892499]
[1771891699630,0.47103312,78.168,78.141,0.48892499]
[1771891702141,0.1,78.17,78.151,0.49008949]
[1771891707148,0.1,78.17,78.152,12.79557784]
[1771891707349,0.1,78.17,78.153,0.49008949]
[1771891707647,0.1,78.17,78.152,12.79557784]
[1771891707648,0.55626621,78.17,78.14,0.49008949]
[1771891707845,0.55626621,78.17,78.133,31.99641322]
[1771891707846,0.45626621,78.169,78.134,0.49008949]
[1771891709031,0.45626621,78.167,78.14,5.54254024]
[1771891709245,0.45626621,78.167,78.14,6.03262973]
[1771891709432,0.45626621,78.167,78.141,0.49008949]
[1771891709638,0.45626621,78.167,78.15,5.54254024]
[1771891710057,0.45626621,78.167,78.145,0.49008949]
[1771891710443,0.45626621,78.167,78.137,0.49008949]
[1771891713054,0.45626621,78.165,78.139,0.49008949]
[1771891714260,0.45626621,78.159,78.131,0.49008949]
[1771891717234,0.45626621,78.157,78.14,5.54254024]
[1771891718565,13.25118918,78.156,78.14,6.03262973]
[1771891720942,13.25118918,78.156,78.141,0.49008949]
[1771891721842,0.45626621,78.155,78.141,0.49008949]
[1771891722041,0.45626621,78.155,78.131,0.49008949]
[1771891722964,0.45626621,78.153,78.131,0.49008949]
[1771891723666,0.45626621,78.153,78.128,12.79939598]
[1771891724165,0.45626621,78.153,78.13,5.54254024]
[1771891724544,0.45626621,78.153,78.132,0.49008949]
[1771891732164,0.45514935,78.169,78.141,0.49729973]
[1771891732344,0.45514935,78.169,78.133,44.79541294]
[1771891732345,0.1,78.17,78.151,0.49729973]
[1771891732550,0.1,78.17,78.16,6.03983997]
[1771891733270,0.1,78.17,78.16,5.54254024]
[1771891733568,0.1,78.17,78.161,0.49729973]
[1771891738758,0.45514935,78.179,78.163,0.49729973]
[1771891739377,0.45514935,78.187,78.163,0.49729973]
[1771891739555,12.78952282,78.189,78.162,12.79394078]
[1771891739556,0.55514935,78.19,78.171,0.49729973]
[1771891739877,0.45514935,78.189,78.171,0.49729973]
[1771891740863,0.45514935,78.189,78.163,0.49729973]
[1771891741153,0.45514935,78.179,78.146,12.79642258]
[1771891741361,0.45514935,78.179,78.146,13.29372231]
[1771891741555,0.45514935,78.169,78.143,0.49729973]
[1771891743177,0.45514935,78.167,78.138,12.79784455]
[1771891744269,0.45514935,78.167,78.138,13.29514428]
[1771891744578,0.45514935,78.167,78.14,6.03983997]
[1771891745483,0.45514935,78.165,78.142,0.49729973]
[1771891745663,12.79328608,78.166,78.151,0.49729973]
[1771891745976,0.45514935,78.17,78.151,0.49729973]
[1771891746183,12.79279509,78.169,78.151,0.49729973]
[1771891748873,0.45514935,78.184,78.161,0.49729973]
[1771891749076,0.45514935,78.183,78.161,0.49729973]
[1771891750673,0.45514935,78.181,78.161,0.49729973]
[1771891751481,0.45514935,78.181,78.161,0.32729973]
[1771891757487,0.45514935,78.181,78.161,13.12134413]
[1771891757683,0.45514935,78.181,78.162,0.49729973]
[1771891759585,0.45514935,78.181,78.16,5.54254024]
[1771891759586,0.1,78.19,78.164,0.4793094]
[1771891759792,0.55672591,78.19,78.164,0.4793094]
[1771891761286,12.78952282,78.189,78.164,0.4793094]
[1771891761492,0.46164609,78.188,78.164,0.4793094]
[1771891766294,12.78984997,78.187,78.166,0.46354559]
[1771891767794,0.1,78.19,78.181,0.46354559]
[1771891768109,12.78671268,78.207,78.182,0.46354559]
[1771891768278,12.78671268,78.207,78.167,44.77592845]
[1771891768279,12.78596706,78.211,78.191,0.46354559]
[1771891768998,5.63701085,78.22,78.201,0.46354559]
[1771891768999,0.1,78.22,78.201,0.46354559]
[1771891769710,0.1,78.22,78.211,0.46354559]
[1771891770283,0.1,78.23,78.212,0.46354559]
[1771891771079,0.56164609,78.23,78.212,0.46354559]
[1771891777715,0.1,78.23,78.213,0.46354559]
[1771891779518,12.78198564,78.236,78.214,0.46354559]
[1771891781130,0.46164609,78.239,78.214,0.46354559]
[1771891782329,0.46164609,78.239,78.221,0.46354559]
[1771891782516,0.1,78.24,78.22,5.53701085]
[1771891782517,0.1,78.24,78.223,0.46354559]
[1771891782919,0.1,78.25,78.231,0.46354559]
[1771891783310,12.77971603,78.249,78.231,0.46354559]
[1771891783519,0.46164609,78.248,78.221,0.46354559]
[1771891785639,0.46164609,78.246,78.222,0.46354559]
[1771891788231,0.1,78.25,78.231,0.46229928]
[1771891788429,0.1,78.25,78.241,0.46229928]
[1771891791633,5.63701085,78.26,78.241,0.46229928]
[1771891791634,0.1,78.26,78.242,0.46229928]
[1771891792012,5.63701085,78.26,78.237,0.46229928]
[1771891792313,12.77808303,78.259,78.231,0.46229928]
[1771891792515,0.1,78.26,78.241,0.46229928]
[1771891793021,0.1,78.26,78.242,0.46229928]
[1771891794634,0.33625892,78.259,78.233,0.46229928]
[1771891795141,0.33625892,78.259,78.24,5.53701085]
[1771891795437,0.1,78.26,78.241,0.46229928]
[1771891795637,0.1,78.26,78.234,12.78216632]
[1771891795638,0.1,78.27,78.251,0.46229928]
[1771891796232,0.1,78.28,78.263,0.46229928]
[1771891796534,12.77288551,78.291,78.272,0.46229928]
[1771891797119,0.43549416,78.295,78.272,0.46229928]
[1771891798545,0.43549416,78.289,78.261,12.77771509]
[1771891799221,0.43549416,78.287,78.261,0.46229928]
[1771891800949,0.43549416,78.285,78.261,0.46229928]
[1771891802232,0.43549416,78.269,78.231,0.46229928]
[1771891802430,5.53701085,78.26,78.231,0.46229928]
[1771891802631,0.43549416,78.261,78.231,0.46229928]
[1771891803142,0.43549416,78.261,78.232,12.78249309]
[1771891803453,5.97250501,78.27,78.24,5.53701085]
[1771891803625,31.93419002,78.286,78.243,0.46229928]
[1771891803626,5.53701085,78.28,78.243,0.46229928]
[1771891803956,0.43549416,78.279,78.251,0.46229928]
[1771891804749,5.53701085,78.27,78.251,0.46229928]
[1771891806136,12.77645044,78.269,78.251,0.46229928]
[1771891806337,0.43549416,78.274,78.251,0.46229928]
[1771891806537,12.77579752,78.273,78.251,0.46229928]
[1771891806730,0.43549416,78.272,78.251,0.46229928]
[1771891807850,12.77523597,78.277,78.253,0.46229928]
[1771891808052,0.43549416,78.278,78.253,0.46229928]
[1771891808260,0.43549416,78.278,78.254,12.77889948]
[1771891808549,0.43549416,78.278,78.255,0.46229928]
[1771891810235,0.43549416,78.287,78.261,0.46229928]
[1771891810545,0.43549416,78.289,78.261,0.46229928]
[1771891810753,13.20868068,78.289,78.261,0.46229928]
[1771891812037,0.43549416,78.288,78.261,0.46229928]
[1771891812251,0.43549416,78.286,78.261,0.46229928]
[1771891812455,0.43549416,78.279,78.255,0.46229928]
[1771891812643,0.43549416,78.279,78.242,0.46229928]
[1771891818440,0.43549416,78.277,78.244,0.49418936]
[1771891820839,0.43549416,78.275,78.235,0.49418936]
[1771891821038,0.43549416,78.275,78.241,0.48532666]
[1771891822865,0.43549416,78.273,78.242,0.48532666]
[1771891824265,0.43549416,78.271,78.242,0.48532666]
[1771891825870,0.43549416,78.271,78.244,0.48532666]
[1771891826753,0.43549416,78.269,78.244,0.48532666]
[1771891828274,0.43549416,78.267,78.244,0.48532666]
[1771891830271,13.21243433,78.266,78.244,0.48532666]
[1771891832274,0.43549416,78.266,78.244,0.48532666]
[1771891832481,12.77645044,78.269,78.246,0.48532666]
[1771891832676,0.43549416,78.286,78.251,0.48532666]
[1771891834582,0.43549416,78.284,78.253,0.48532666]
[1771891836175,0.43549416,78.279,78.253,0.48532666]
[1771891836885,0.43549416,78.279,78.25,5.52519823]
[1771891836886,12.77498147,78.278,78.255,0.48532666]
[1771891837382,13.21047563,78.278,78.255,0.48532666]
[1771891838075,12.77498147,78.278,78.255,0.48532666]
[1771891838275,0.43549416,78.277,78.255,0.48532666]
[1771891838478,0.43549416,78.281,78.255,0.48532666]
[1771891839485,31.9337821,78.287,78.255,0.48532666]
[1771891839690,0.43549416,78.279,78.255,0.48532666]
[1771891842489,0.43549416,78.291,78.261,0.48532666]
[1771891842870,0.43549416,78.298,78.271,0.48532666]
[1771891843068,12.7717183,78.298,78.271,0.48532666]
[1771891843273,12.7710683,78.302,78.271,0.48532666]
[1771891843483,12.7710683,78.302,78.281,0.48532666]
[1771891844089,0.6,78.31,78.281,5.36086188]
[1771891844491,0.6,78.31,78.282,12.7743287]
[1771891847869,0.5,78.308,78.282,12.7743287]
[1771891848388,0.5,78.308,78.281,12.77449189]
[1771891848989,0.5,78.308,78.281,44.71072162]
[1771891850076,0.5,78.307,78.281,12.77449189]
[1771891851288,0.5,78.307,78.27,5.36086188]
[1771891851470,0.5,78.307,78.27,10.88606011]
[1771891852095,0.5,78.305,78.27,10.88606011]
[1771891852989,0.5,78.299,78.265,12.77710343]
[1771891853381,0.5,78.298,78.27,5.52519823]
[1771891856109,0.5,78.298,78.271,12.77612397]
[1771891856583,0.5,78.298,78.272,5.36086188]
[1771891857794,0.5,78.298,78.273,12.77579752]
[1771891862007,0.5,78.296,78.26,10.88606011]
[1771891862406,0.5,78.289,78.259,12.77808303]
[1771891863486,0.5,78.287,78.251,18.14025128]
[1771891868192,12.773676,78.286,78.251,18.14025128]
[1771891868408,0.5,78.285,78.251,18.14025128]
[1771891868785,5.52519823,78.28,78.251,18.14025128]
[1771891868986,0.5,78.279,78.251,18.14025128]
[1771891870003,0.5,78.279,78.251,12.7793894]
[1771891870189,0.5,78.277,78.251,12.7793894]
[1771891873211,0.5,78.275,78.239,5.36086188]
[1771891873508,0.5,78.275,78.25,5.52519823]
[1771891875113,0.5,78.275,78.25,18.30463809]
[1771891880390,0.5,78.275,78.241,5.36086188]
[1771891880608,0.5,78.275,78.25,5.52519823]
[1771891880815,0.5,78.275,78.251,5.36086188]
[1771891881002,0.5,78.279,78.251,5.36086188]
[1771891881314,0.5,78.288,78.26,5.5231388]
[1771891885814,0.5,78.288,78.261,12.77775648]
[1771891886517,0.5,78.286,78.261,12.77775648]
[1771891886910,0.5,78.286,78.25,23.66355339]
[1771891887112,0.5,78.286,78.25,55.61243517]
[1771891887621,0.5,78.286,78.26,5.5231388]
[1771891888117,0.5,78.288,78.261,18.13861836]
[1771891892519,0.5,78.288,78.261,50.08300956]
[1771891895905,0.5,78.308,78.28,5.5231388]
[1771891896112,5.5231388,78.3,78.271,5.36086188]
[1771891896402,0.5,78.299,78.271,5.36086188]
[1771891896609,0.5,78.289,78.262,5.36086188]
[1771891897219,0.5,78.289,78.263,44.7210048]
[1771891908433,0.5,78.289,78.27,5.5231388]
[1771891908633,0.5,78.297,78.271,5.36086188]
[1771891912232,0.5,78.297,78.272,12.77596075]
[1771891912536,0.5,78.297,78.28,5.5231388]
[1771891913133,0.5,78.297,78.272,44.71586263]
[1771891913435,0.1,78.31,78.29,5.5231388]
[1771891913629,0.1,78.31,78.291,5.36086188]
[1771891913943,12.76522585,78.338,78.302,0.48375032]
[1771891914121,5.5231388,78.33,78.302,0.48375032]
[1771891914320,5.5231388,78.33,78.303,13.25465309]
[1771891916034,0.49275812,78.329,78.303,13.25465309]
[1771891916834,0.49275812,78.319,78.299,12.77153253]
[1771891917411,0.49275812,78.319,78.3,0.48375032]
[1771891917617,0.49275812,78.329,78.301,0.48375032]
[1771891918940,0.49275812,78.329,78.303,0.48375032]
[1771891919142,0.49275812,78.328,78.303,0.48375032]
[1771891920924,0.49275812,78.326,78.303,0.48375032]
[1771891922042,0.49275812,78.333,78.304,12.77073968]
[1771891922228,0.49275812,78.329,78.304,12.77073968]
[1771891922428,0.49275812,78.329,78.305,0.48375032]
[1771891923041,0.49275812,78.329,78.306,12.7704135]
[1771891923344,0.49275812,78.329,78.307,0.48375032]
[1771891925342,0.49275812,78.329,78.309,0.48375032]
[1771891928950,0.49275812,78.334,78.311,0.48375032]
[1771891929253,0.49275812,78.334,78.313,0.48375032]
[1771891931156,0.49275812,78.334,78.315,0.48375032]
[1771891934557,3.612354,78.335,78.317,0.48375032]
[1771891935748,4.10511212,78.335,78.318,12.7684568]
[1771891935961,4.10511212,78.335,78.318,13.25220712]
[1771891936151,4.10511212,78.335,78.318,12.7684568]
[1771891936462,4.10511212,78.335,78.319,0.48375032]
[1771891936957,0.49275812,78.334,78.32,12.76813074]
[1771891937159,0.49275812,78.334,78.32,13.25188106]
[1771891939559,0.49275812,78.334,78.316,0.48544145]
[1771891939764,3.612354,78.335,78.32,5.5231388]
[1771891940060,0.1,78.36,78.323,0.48544145]
[1771891940240,0.1,78.36,78.332,0.48544145]
[1771891941244,0.1,78.36,78.33,5.5231388]
[1771891941245,0.1,78.36,78.341,0.49002209]
[1771891941842,0.48051665,78.359,78.342,0.49002209]
[1771891942852,0.48051665,78.359,78.341,12.76457312]
[1771891944363,0.48051665,78.359,78.337,13.255382]
[1771891944548,0.48051665,78.357,78.332,0.49002209]
[1771891946046,0.48051665,78.349,78.32,5.51251843]
[1771891946248,0.48051665,78.349,78.315,12.76894592]
[1771891946488,0.48051665,78.347,78.315,0.49002209]
[1771891947166,0.48051665,78.347,78.321,0.49002209]
[1771891947947,0.48051665,78.353,78.321,0.49002209]
[1771891948450,0.48051665,78.353,78.295,51.0882622]
[1771891948451,0.48051665,78.359,78.333,0.49002209]
[1771891948670,0.48051665,78.359,78.332,12.76617474]
[1771891948671,0.48051665,78.359,78.34,5.51251843]
[1771891948970,0.48051665,78.359,78.334,0.49002209]
[1771891951066,0.48051665,78.359,78.341,0.49002209]
[1771891951247,0.1,78.36,78.341,0.49002209]
[1771891951876,0.58051665,78.36,78.341,0.49002209]
[1771891953172,0.58051665,78.36,78.342,0.49002209]
[1771891955072,0.58051665,78.36,78.34,5.51251843]
[1771891955247,0.58051665,78.36,78.34,6.00254052]
[1771891955969,0.48051665,78.358,78.332,0.49002209]
[1771891956273,0.48051665,78.358,78.334,0.49002209]
[1771891957675,0.48051665,78.358,78.335,13.25570792]
[1771891958060,0.48051665,78.339,78.288,5.36086188]
[1771891958263,0.48051665,78.329,78.301,0.49002209]
[1771891958573,0.48051665,78.359,78.322,0.49002209]
[1771891958773,0.48051665,78.359,78.333,0.49002209]
[1771891959275,0.48051665,78.359,78.331,12.76633772]
[1771891959458,0.48051665,78.359,78.332,0.49002209]
[1771891960777,12.76193879,78.358,78.332,0.49002209]
[1771891960963,0.48051665,78.357,78.334,0.49002209]
[1771891962474,0.48051665,78.367,78.35,5.98833102]
[1771891962661,0.48051665,78.367,78.351,0.47581259]
[1771891962862,0.48051665,78.373,78.351,0.47581259]
[1771891967179,0.48051665,78.373,78.36,5.51251843]
[1771891967984,12.85684916,78.39,78.361,0.46937774]
[1771891968485,12.75732808,78.387,78.361,0.46937774]
[1771891969170,5.61251843,78.39,78.352,12.76291607]
[1771891969371,5.61251843,78.38,78.342,12.76444105]
[1771891970073,0.45921687,78.379,78.342,12.76444105]
[1771891971090,0.45921687,78.379,78.35,5.98189617]
[1771891971385,0.45921687,78.379,78.361,0.46937774]
[1771891971569,0.45921687,78.377,78.352,12.76291607]
[1771891971769,0.45921687,78.377,78.353,0.46937774]
[1771891972566,0.45921687,78.377,78.352,12.76291607]
[1771891972567,0.55921687,78.38,78.361,0.46937774]
[1771891973476,0.55921687,78.38,78.361,13.23069182]
[1771891975690,0.55921687,78.38,78.363,13.23050225]
[1771891977190,0.45921687,78.379,78.365,12.76079882]
[1771891977390,0.1,78.38,78.365,12.76079882]
[1771891977584,0.1,78.38,78.371,0.46937774]
[1771891978688,0.55921687,78.38,78.361,0.46937774]
[1771891979196,0.55921687,78.38,78.36,18.27398045]
[1771891979374,0.55921687,78.38,78.36,12.76146202]
[1771891979581,0.45921687,78.378,78.351,12.76294535]
[1771891979777,0.45921687,78.378,78.341,0.46937774]
[1771891979983,0.45921687,78.378,78.34,18.2773071]
[1771891980277,0.45921687,78.369,78.337,0.46937774]
[1771891980794,0.45921687,78.359,78.332,0.46937774]
[1771891981509,0.45921687,78.379,78.351,0.46937774]
[1771891981800,0.1,78.38,78.34,5.51251843]
[1771891981801,5.51251843,78.37,78.34,5.51251843]
[1771891981996,5.51251843,78.37,78.331,0.5]
[1771891983602,12.7601475,78.369,78.331,0.5]
[1771891984100,12.7601475,78.369,78.333,0.5]
[1771891984300,0.1,78.38,78.361,0.5]
[1771891984700,12.7585195,78.379,78.342,5.36086188]
[1771891984886,12.7585195,78.379,78.35,6.01251843]
[1771891985197,44.65481825,78.379,78.35,0.5]
[1771891990107,44.65481825,78.379,78.351,0.5]
[1771891990301,12.7585195,78.379,78.352,0.5]
[1771891990612,0.1,78.38,78.351,12.76307896]
[1771891990613,0.1,78.38,78.361,0.5]
[1771891991911,12.7585195,78.379,78.346,13.26375856]
[1771891992084,44.65481825,78.379,78.346,0.5]
[1771891992284,44.65481825,78.379,78.348,0.5]
[1771891994106,12.7585195,78.379,78.348,0.5]
[1771891996389,12.7585195,78.379,78.349,12.76340476]
[1771891996589,12.7585195,78.379,78.349,13.26340476]
[1771891996906,12.7585195,78.379,78.35,0.5]
[1771891998098,12.7585195,78.379,78.352,0.5]
[1771892001691,44.65481825,78.379,78.352,0.5]
[1771892003206,12.7585195,78.379,78.352,0.5]
[1771892003788,0.1,78.38,78.354,0.5]
[1771892008006,12.75689191,78.389,78.361,0.49869864]
[1771892008208,12.75578689,78.396,78.371,0.49869864]
[1771892009116,0.1,78.401,78.371,0.49869864]
[1771892009413,0.1,78.399,78.371,0.49869864]
[1771892011709,0.1,78.398,78.371,0.49869864]
[1771892017319,0.1,78.398,78.372,0.49869864]
[1771892025431,0.1,78.398,78.374,0.49869864]
[1771892025729,5.51079012,78.4,78.374,0.49869864]
[1771892026034,31.98455381,78.408,78.389,0.49869864]
[1771892026430,0.1,78.407,78.389,0.49869864]
[1771892030239,0.4605539,78.399,78.369,12.76012198]
[1771892032021,5.51079012,78.4,78.359,31.90443247]
[1771892032022,12.75515706,78.4,78.372,0.46488252]
[1771892033730,13.21571096,78.4,78.372,0.46488252]
[1771892037753,0.4605539,78.399,78.372,0.46488252]
[1771892040456,12.75542743,78.398,78.374,0.46488252]
[1771892042136,0.4605539,78.397,78.374,0.46488252]
[1771892043633,0.4605539,78.395,78.374,0.46488252]
[1771892044757,0.4605539,78.389,78.358,0.46488252]
[1771892045053,0.4605539,78.379,78.358,0.46488252]
[1771892047835,12.75868228,78.378,78.358,0.46488252]
[1771892050561,0.4605539,78.389,78.358,0.46488252]
[1771892050763,0.4605539,78.388,78.358,0.46488252]
[1771892055665,0.4605539,78.386,78.358,0.46488252]
[1771892060754,103.9,78.408,78.361,0.46062046]
[1771892060755,0.45526424,78.396,78.361,0.46062046]
[1771892061466,0.45526424,78.389,78.361,0.46062046]
[1771892063275,12.75705465,78.388,78.361,0.46062046]
[1771892063576,12.75636963,78.393,78.363,0.46062046]
[1771892063757,0.45526424,78.394,78.363,0.46062046]
[1771892064067,13.21083934,78.398,78.363,0.46062046]
[1771892064255,0.45526424,78.397,78.363,0.46062046]
[1771892065372,0.45526424,78.395,78.365,0.46062046]
[1771892067554,12.75575284,78.396,78.371,0.46062046]
[1771892067859,12.75509157,78.401,78.371,0.46062046]
[1771892068476,0.45526424,78.403,78.381,0.46062046]
[1771892071173,0.45526424,78.423,78.391,0.46062046]
[1771892071369,50.97007861,78.478,78.382,12.75803118]
[1771892071370,0.45526424,78.444,78.411,0.46062046]
[1771892071880,0.45526424,78.439,78.411,0.46062046]
[1771892072171,12.74778507,78.445,78.382,44.65310913]
[1771892072172,0.45526424,78.429,78.382,44.65310913]
[1771892072372,0.45526424,78.429,78.391,5.36086188]
[1771892073178,0.45526424,78.427,78.4,5.50929635]
[1771892074376,0.45526424,78.427,78.401,0.46062046]
[1771892077460,13.20473141,78.435,78.403,0.46062046]
[1771892077775,0.45526424,78.434,78.403,0.46062046]
[1771892077959,3.69383402,78.453,78.403,0.46062046]
[1771892077960,0.45526424,78.443,78.41,5.50929635]
[1771892078165,0.45526424,78.443,78.421,0.46062046]
[1771892078775,0.45526424,78.448,78.421,0.46062046]
[1771892079077,5.50929635,78.44,78.393,12.75624099]
[1771892079373,0.45526424,78.429,78.393,12.75624099]
[1771892080277,0.45526424,78.427,78.392,31.89069383]
[1771892080576,0.45526424,78.427,78.4,5.50929635]
[1771892081071,0.45526424,78.427,78.401,0.38006044]
[1771892081275,0.45526424,78.432,78.406,0.38006044]
[1771892082081,0.45526424,78.429,78.391,5.36086188]
[1771892082375,0.45526424,78.427,78.393,0.38006044]
[1771892083163,0.45526424,78.409,78.381,0.38006044]
[1771892083764,0.45526424,78.409,78.39,5.50929635]
[1771892084081,0.34176259,78.409,78.391,0.38006044]
[1771892085576,0.34176259,78.409,78.371,0.46062046]
[1771892085782,0.34176259,78.409,78.373,0.46062046]
[1771892086676,0.45526424,78.399,78.375,0.46062046]
[1771892087688,0.45526424,78.404,78.381,0.46062046]
[1771892087983,0.45526424,78.404,78.376,0.46940198]
[1771892088564,0.45526424,78.404,78.381,0.46940198]
[1771892088788,5.50929635,78.41,78.381,0.46940198]
[1771892088789,0.46049864,78.402,78.381,0.46940198]
[1771892091979,0.46049864,78.4,78.381,0.46940198]
[1771892093576,0.46049864,78.4,78.382,0.46940198]
[1771892093970,0.46049864,78.406,78.382,0.46940198]
[1771892094172,0.46049864,78.412,78.391,0.46940198]
[1771892094378,0.46049864,78.425,78.391,0.46940198]
[1771892096619,12.75119861,78.424,78.391,0.46940198]
[1771892096797,0.46049864,78.423,78.391,0.46940198]
[1771892097403,0.46049864,78.435,78.41,5.50929635]
[1771892097581,0.46049864,78.435,78.411,0.46940198]
[1771892097775,5.50929635,78.45,78.411,0.46940198]
[1771892097776,0.46049864,78.433,78.411,0.46940198]
[1771892097977,0.46049864,78.433,78.406,0.46940198]